fUST/lending_fUST_20250425
["ID","MTS","AMOUNT","RATE_DAILY","PERIOD"]
[358968832,1745593841696,-500.0,0.00016438,2]
[358968833,1745593841706,-287.6650246,0.00016438,2]
[358968834,1745593841716,-151.20167067,0.00016493,2]
[358968835,1745593841726,-180.91782627,0.00016493,2]
[358968836,1745593841735,-160.0,0.00016546,2]
[358968837,1745593841745,-1203.77501624,0.00016546,2]
[358968838,1745593841754,-160.0,0.00016546,2]
[358968839,1745593841764,-840.21051354,0.00016546,2]
[358968840,1745593841774,-160.0,0.00016546,2]
[358968841,1745593841784,-152.63647369,0.00016612,2]
[358968842,1745593841793,-403.0,0.00016658,2]
[358968843,1745593841803,-403.0,0.00016658,2]
[358968844,1745593841813,-152.63647368,0.00016684,2]
[358968845,1745593841823,-500.0,0.00016712,2]
[358968846,1745593841832,-500.0,0.00016712,2]
[358968847,1745593841842,-500.0,0.00016712,2]
[358968848,1745593841852,-500.0,0.00016712,2]
[358968849,1745593841866,-500.0,0.00016712,2]
[358968850,1745593841876,-500.0,0.00016712,2]
[358968851,1745593841886,-500.0,0.00016712,2]
[358968852,1745593841897,-500.0,0.00016712,2]
[358968853,1745593841906,-500.0,0.00016712,2]
[358968854,1745593841918,-500.0,0.00016712,2]
[358968855,1745593841928,-645.54940554,0.00016712,2]
[358968856,1745593841937,-565.41,0.00016712,2]
[358968857,1745593841947,-500.0,0.00016712,2]
[358968858,1745593841957,-500.0,0.00016712,2]
[358968859,1745593841966,-500.0,0.00016712,2]
[358968860,1745593841980,-1503.39,0.00016712,2]
[358968861,1745593841990,-500.0,0.00016712,2]
[358968862,1745593842000,-500.0,0.00016712,2]
[358968863,1745593842009,-500.0,0.00016712,2]
[358968864,1745593842021,-500.0,0.00016712,2]
[358968865,1745593842031,-545.09,0.00016712,2]
[358968866,1745593842040,-500.0,0.00016712,2]
[358968867,1745593842050,-500.0,0.00016712,2]
[358968868,1745593842064,-500.0,0.00016712,2]
[358968869,1745593842074,-1185.44,0.00016712,2]
[358968870,1745593842083,-500.0,0.00016712,2]
[358968871,1745593842093,-500.0,0.00016712,2]
[358968872,1745593842103,-500.0,0.00016712,2]
[358968873,1745593842117,-500.0,0.00016712,2]
[358968874,1745593842127,-500.0,0.00016712,2]
[358968875,1745593842136,-500.0,0.00016712,2]
[358968876,1745593842146,-204.470017,0.00016712,2]
[358968877,1745593842157,-501.37468369,0.00016712,2]
[358968878,1745593842166,-885.73,0.00016712,2]
[358968879,1745593842175,-500.0,0.00016712,2]
[358968880,1745593842185,-537.9,0.00016712,2]
[358968881,1745593842194,-500.0,0.00016712,2]
[358968882,1745593842204,-500.0,0.00016712,2]
[358968883,1745593842214,-500.0,0.00016712,2]
[358968884,1745593842223,-499.99525258,0.00016712,2]
[358968885,1745593842233,-500.0,0.00016712,2]
[358968886,1745593842243,-500.0,0.00016712,2]
[358968887,1745593842252,-1051.84,0.00016712,2]
[358968888,1745593842262,-500.0,0.00016712,2]
[358968889,1745593842271,-500.0,0.00016712,2]
[358968890,1745593842281,-500.0,0.00016712,2]
[358968891,1745593842290,-517.24952137,0.00016712,2]
[358968892,1745593842299,-500.0,0.00016712,2]
[358968893,1745593842309,-500.0,0.00016712,2]
[358968894,1745593842318,-500.0,0.00016712,2]
[358968895,1745593842328,-500.0,0.00016712,2]
[358968896,1745593842338,-500.0,0.00016712,2]
[358968897,1745593842347,-500.0,0.00016712,2]
[358968898,1745593842361,-500.0,0.00016712,2]
[358968899,1745593842370,-500.0,0.00016712,2]
[358968900,1745593842379,-500.0,0.00016712,2]
[358968901,1745593842389,-500.0,0.00016712,2]
[358968902,1745593842398,-500.0,0.00016712,2]
[358968903,1745593842408,-507.13094928,0.00016712,2]
[358968904,1745593842417,-599.43,0.00016712,2]
[358968905,1745593842427,-500.0,0.00016712,2]
[358968906,1745593842438,-500.0,0.00016712,2]
[358968907,1745593842448,-500.0,0.00016712,2]
[358968908,1745593842457,-500.0,0.00016712,2]
[358968909,1745593842467,-500.0,0.00016712,2]
[358968910,1745593842477,-500.0,0.00016712,2]
[358968911,1745593842486,-500.0,0.00016712,2]
[358968912,1745593842495,-528.59158088,0.00016712,2]
[358968913,1745593842505,-500.0,0.00016712,2]
[358968914,1745593842514,-500.0,0.00016712,2]
[358968915,1745593842524,-504.90487717,0.00016712,2]
[358968916,1745593842533,-500.0,0.00016712,2]
[358968917,1745593842543,-500.0,0.00016712,2]
[358968918,1745593842553,-348.3151761,0.00016712,2]
[358968919,1745593842564,-500.0,0.00016712,2]
[358968920,1745593842574,-500.0,0.00016712,2]
[358968921,1745593842584,-500.0,0.00016712,2]
[358968922,1745593842594,-500.0,0.00016712,2]
[358968923,1745593842603,-500.0,0.00016712,2]
[358968924,1745593842617,-500.0,0.00016712,2]
[358968925,1745593842626,-500.0,0.00016712,2]
[358968926,1745593842636,-1061.6,0.00016712,2]
[358968927,1745593842645,-500.0,0.00016712,2]
[358968928,1745593842655,-415.90781107,0.00016712,2]
[358968929,1745593842664,-500.0,0.00016712,2]
[358968930,1745593842674,-500.0,0.00016712,2]
[358968931,1745593842683,-604.63238144,0.00016712,2]
[358968932,1745593842693,-500.0,0.00016712,2]
[358968933,1745593842702,-500.0,0.00016712,2]
[358968934,1745593842711,-500.0,0.00016712,2]
[358968935,1745593842725,-500.0,0.00016712,2]
[358968936,1745593842736,-500.0,0.00016712,2]
[358968937,1745593842746,-500.0,0.00016712,2]
[358968938,1745593842756,-504.74056606,0.00016712,2]
[358968939,1745593842766,-500.0,0.00016712,2]
[358968940,1745593842778,-503.85694911,0.00016712,2]
[358968941,1745593842789,-500.0,0.00016712,2]
[358968942,1745593842799,-500.0,0.00016712,2]
[358968943,1745593842810,-765.26,0.00016712,2]
[358968944,1745593842821,-500.0,0.00016712,2]
[358968945,1745593842831,-500.0,0.00016712,2]
[358968946,1745593842841,-588.32647478,0.00016712,2]
[358968947,1745593842851,-500.0,0.00016712,2]
[358968948,1745593842863,-500.0,0.00016712,2]
[358968949,1745593842873,-500.0,0.00016712,2]
[358968950,1745593842883,-922.21,0.00016712,2]
[358968951,1745593842892,-500.0,0.00016712,2]
[358968952,1745593842902,-500.0,0.00016712,2]
[358968953,1745593842911,-501.84401182,0.00016712,2]
[358968954,1745593842921,-500.0,0.00016712,2]
[358968955,1745593842930,-500.0,0.00016712,2]
[358968956,1745593842940,-500.0,0.00016712,2]
[358968957,1745593842950,-512.11025673,0.00016712,2]
[358968958,1745593842960,-500.0,0.00016712,2]
[358968959,1745593842969,-500.0,0.00016712,2]
[358968960,1745593842980,-500.0,0.00016712,2]
[358968961,1745593842991,-500.0,0.00016712,2]
[358968962,1745593843001,-500.0,0.00016712,2]
[358968963,1745593843010,-500.0,0.00016712,2]
[358968964,1745593843021,-500.0,0.00016712,2]
[358968965,1745593843030,-500.0,0.00016712,2]
[358968966,1745593843040,-500.0,0.00016712,2]
[358968967,1745593843049,-500.0,0.00016712,2]
[358968968,1745593843060,-500.0,0.00016712,2]
[358968969,1745593843070,-526.78974607,0.00016712,2]
[358968970,1745593843080,-500.0,0.00016712,2]
[358968972,1745593843089,-500.0,0.00016712,2]
[358968975,1745593843099,-584.37174944,0.00016712,2]
[358968977,1745593843108,-500.0,0.00016712,2]
[358968979,1745593843118,-583.35,0.00016712,2]
[358968981,1745593843127,-500.0,0.00016712,2]
[358968982,1745593843136,-500.0,0.00016712,2]
[358968983,1745593843146,-500.0,0.00016712,2]
[358968984,1745593843156,-159.76984776,0.00016712,2]
[358968985,1745593843165,-500.0,0.00016712,2]
[358968986,1745593843175,-500.0,0.00016712,2]
[358968987,1745593843185,-500.0,0.00016712,2]
[358968988,1745593843194,-500.0,0.00016712,2]
[358968989,1745593843204,-500.0,0.00016712,2]
[358968990,1745593843213,-500.0,0.00016712,2]
[358968992,1745593843222,-500.0,0.00016712,2]
[358968993,1745593843232,-500.0,0.00016712,2]
[358968994,1745593843241,-500.0,0.00016712,2]
[358968995,1745593843250,-500.0,0.00016712,2]
[358968996,1745593843260,-500.0,0.00016712,2]
[358968997,1745593843269,-500.0,0.00016712,2]
[358968998,1745593843279,-500.0,0.00016712,2]
[358968999,1745593843288,-500.0,0.00016712,2]
[358969000,1745593843297,-501.16801424,0.00016712,2]
[358969001,1745593843306,-500.0,0.00016712,2]
[358969002,1745593843316,-500.0,0.00016712,2]
[358969003,1745593843325,-1382.17,0.00016712,2]
[358969004,1745593843335,-500.0,0.00016712,2]
[358969005,1745593843344,-528.44732593,0.00016712,2]
[358969006,1745593843354,-500.0,0.00016712,2]
[358969007,1745593843365,-500.0,0.00016712,2]
[358969008,1745593843375,-505.06252865,0.00016712,2]
[358969009,1745593843384,-500.0,0.00016712,2]
[358969010,1745593843393,-500.0,0.00016712,2]
[358969011,1745593843402,-500.0,0.00016712,2]
[358969012,1745593843412,-500.0,0.00016712,2]
[358969013,1745593843421,-500.0,0.00016712,2]
[358969014,1745593843430,-1027.34,0.00016712,2]
[358969015,1745593843439,-500.0,0.00016712,2]
[358969016,1745593843449,-500.0,0.00016712,2]
[358969017,1745593843458,-500.0,0.00016712,2]
[358969018,1745593843468,-500.0,0.00016712,2]
[358969019,1745593843477,-500.0,0.00016712,2]
[358969020,1745593843487,-500.0,0.00016712,2]
[358969021,1745593843496,-500.0,0.00016712,2]
[358969022,1745593843505,-500.0,0.00016712,2]
[358969023,1745593843514,-500.0,0.00016712,2]
[358969024,1745593843524,-500.0,0.00016712,2]
[358969025,1745593843533,-500.0,0.00016712,2]
[358969026,1745593843543,-500.0,0.00016712,2]
[358969027,1745593843552,-525.73691972,0.00016712,2]
[358969028,1745593843561,-500.0,0.00016712,2]
[358969029,1745593843571,-500.0,0.00016712,2]
[358969030,1745593843580,-500.0,0.00016712,2]
[358969031,1745593843589,-515.7052234,0.00016712,2]
[358969032,1745593843599,-500.0,0.00016712,2]
[358969033,1745593843609,-500.0,0.00016712,2]
[358969034,1745593843621,-500.0,0.00016712,2]
[358969035,1745593843631,-500.0,0.00016712,2]
[358969036,1745593843640,-2954.91,0.00016712,2]
[358969037,1745593843650,-500.0,0.00016712,2]
[358969038,1745593843660,-500.0,0.00016712,2]
[358969039,1745593843670,-500.0,0.00016712,2]
[358969040,1745593843687,-500.0,0.00016712,2]
[358969041,1745593843698,-500.0,0.00016712,2]
[358969042,1745593843710,-900.58,0.00016712,2]
[358969043,1745593843719,-502.77360756,0.00016712,2]
[358969044,1745593843729,-1996.8,0.00016712,2]
[358969045,1745593843738,-2037.07,0.00016712,2]
[358969046,1745593843749,-500.0,0.00016712,2]
[358969047,1745593843758,-500.0,0.00016712,2]
[358969048,1745593843768,-152.63647368,0.00016756,2]
[358969049,1745593843778,-152.63647368,0.00016828,2]
[358969050,1745593843788,-321.2703221,0.00016829,2]
[358969051,1745593843797,-316.76,0.0001689,3]
[358969052,1745593843807,-177.82943274,0.000169,2]
[358969053,1745593843818,-151.0,0.000169,2]
[358969054,1745593843827,-151.0,0.000169,2]
[358969055,1745593843836,-151.0,0.000169,2]
[358969056,1745593843846,-151.0,0.000169,2]
[358969057,1745593843856,-151.0,0.000169,2]
[358969058,1745593843868,-152.63647368,0.000169,2]
[358969059,1745593843877,-500.0,0.00016973,2]
[358969060,1745593843887,-500.0,0.00016973,2]
[358969062,1745593843896,-500.0,0.00016973,2]
[358969063,1745593843906,-500.0,0.00016973,2]
[358969064,1745593843916,-500.0,0.00016973,2]
[358969065,1745593843926,-500.0,0.00016973,2]
[358969067,1745593843937,-500.0,0.00016973,2]
[358969069,1745593843947,-151.0,0.00016986,2]
[358969071,1745593843957,-500.0,0.00016986,2]
[358969073,1745593843967,-500.0,0.00016986,2]
[358969075,1745593843982,-500.0,0.00016986,2]
[358969077,1745593843994,-500.0,0.00016986,2]
[358969079,1745593844007,-500.0,0.00016986,2]
[358969081,1745593844019,-500.0,0.00016986,2]
[358969083,1745593844028,-511.53305846,0.00016986,2]
[358969085,1745593844039,-500.0,0.00016986,2]
[358969088,1745593844048,-500.0,0.00016986,2]
[358969091,1745593844060,-500.0,0.00016986,2]
[358969094,1745593844069,-501.1023988,0.00016986,2]
[358969096,1745593844078,-500.0,0.00016986,2]
[358969098,1745593844089,-426.08901157,0.00016986,2]
[358969100,1745593844098,-500.0,0.00016986,2]
[358969101,1745593844111,-500.0,0.00016986,2]
[358969102,1745593844120,-582.40178941,0.00016986,2]
[358969104,1745593844129,-500.0,0.00016986,2]
[358969105,1745593844139,-500.0,0.00016986,2]
[358969106,1745593844149,-511.11888775,0.00016986,2]
[358969107,1745593844158,-500.0,0.00016986,2]
[358969108,1745593844168,-500.0,0.00016986,2]
[358969109,1745593844178,-500.0,0.00016986,2]
[358969110,1745593844188,-1252.28,0.00016986,2]
[358969111,1745593844197,-500.0,0.00016986,2]
[358969112,1745593844207,-500.0,0.00016986,2]
[358969113,1745593844217,-500.0,0.00016986,2]
[358969114,1745593844226,-389.46856044,0.00016986,2]
[358969115,1745593844236,-500.0,0.00016986,2]
[358969116,1745593844246,-500.0,0.00016986,2]
[358969117,1745593844255,-500.0,0.00016986,2]
[358969118,1745593844265,-151.0,0.00016986,2]
[358969119,1745593844275,-500.0,0.00016986,2]
[358969120,1745593844284,-500.0,0.00016986,2]
[358969121,1745593844294,-500.0,0.00016986,2]
[358969122,1745593844303,-345.80781536,0.00016986,2]
[358969123,1745593844319,-168.13218464,0.00016986,2]
[358969126,1745593844330,-500.0,0.00016986,2]
[358969127,1745593844487,-500.0,0.00016986,2]
[358969128,1745593844497,-500.0,0.00016986,2]
[358969129,1745593844507,-271.76320764,0.00016986,2]
[358969162,1745593846531,-500.0,0.00016438,2]
[358969164,1745593846541,-500.0,0.00016438,2]
[358969166,1745593846551,-500.0,0.00016438,2]
[358969168,1745593846561,-502.66789681,0.00016438,2]
[358969170,1745593846571,-500.0,0.00016438,2]
[358969172,1745593846580,-500.0,0.00016438,2]
[358969174,1745593846590,-500.0,0.00016438,2]
[358969176,1745593846599,-500.0,0.00016438,2]
[358969178,1745593846609,-507.38327447,0.00016438,2]
[358969180,1745593846619,-500.0,0.00016712,2]
[358969182,1745593846629,-500.0,0.00016712,2]
[358969184,1745593846638,-416.714139,0.00016712,2]
[358969186,1745593846647,-500.0,0.00016712,2]
[358969188,1745593846656,-500.0,0.00016712,2]
[358969190,1745593846666,-228.23679236,0.00016986,2]
[358969192,1745593846675,-500.0,0.00016986,2]
[358969194,1745593846685,-500.0,0.00016986,2]
[358969196,1745593846695,-500.0,0.00016986,2]
[358969198,1745593846704,-500.0,0.00016986,2]
[358969200,1745593846714,-530.86,0.00016986,2]
[358969201,1745593846723,-852.63,0.00016986,2]
[358969202,1745593846732,-500.0,0.00016986,2]
[358969204,1745593846742,-500.0,0.00016986,2]
[358969206,1745593846752,-979.2,0.00016986,2]
[358969207,1745593846761,-502.28901636,0.00016986,2]
[358969208,1745593846771,-944.998221,0.00016986,2]
[358969246,1745593848233,-514.74,0.00016438,2]
[358969247,1745593848243,-500.0,0.00016973,2]
[358969248,1745593848253,-3423.861779,0.00016986,2]
[358969249,1745593848263,-500.0,0.00016986,2]
[358969250,1745593848273,-500.0,0.00016986,2]
[358969251,1745593848283,-504.75229508,0.00016986,2]
[358969252,1745593848293,-640.2,0.00016986,2]
[358969253,1745593848303,-500.0,0.00016986,2]
[358969254,1745593848312,-500.0,0.00016986,2]
[358969255,1745593848322,-500.0,0.00016986,2]
[358969256,1745593848332,-500.0,0.00016986,2]
[358969257,1745593848342,-500.0,0.00016986,2]
[358969258,1745593848352,-500.0,0.00016986,2]
[358969259,1745593848363,-500.0,0.00016986,2]
[358969260,1745593848373,-500.0,0.00016986,2]
[358969261,1745593848382,-500.0,0.00016986,2]
[358969262,1745593848392,-500.0,0.00016986,2]
[358969263,1745593848401,-500.0,0.00016986,2]
[358969264,1745593848410,-500.0,0.00016986,2]
[358969265,1745593848419,-565.41,0.00016986,2]
[358969266,1745593848429,-500.0,0.00016986,2]
[358969267,1745593848438,-151.0,0.00016986,2]
[358969268,1745593848447,-500.0,0.00016986,2]
[358969269,1745593848456,-1503.39,0.00016986,2]
[358969270,1745593848465,-502.01569707,0.00016986,2]
[358969271,1745593848475,-605.18232363,0.00016986,2]
[358969272,1745593848485,-500.0,0.00016986,2]
[358969273,1745593848495,-500.0,0.00016986,2]
[358969274,1745593848504,-501.4991496,0.00016986,2]
[358969275,1745593848514,-500.0,0.00016986,2]
[358969276,1745593848524,-1185.44,0.00016986,2]
[358969277,1745593848534,-500.0,0.00016986,2]
[358969278,1745593848544,-500.0,0.00016986,2]
[358969279,1745593848553,-500.0,0.00016986,2]
[358969280,1745593848563,-165.441306,0.00016986,2]
[358969281,1745593848572,-885.73,0.00016986,2]
[358969282,1745593848583,-165.441306,0.00016986,2]
[358969283,1745593848592,-537.9,0.00016986,2]
[358969284,1745593848601,-500.0,0.00016986,2]
[358969285,1745593848612,-500.0,0.00016986,2]
[358969286,1745593848622,-500.0,0.00016986,2]
[358969287,1745593848631,-1051.84,0.00016986,2]
[358969288,1745593848641,-375.16839405,0.00016986,2]
[358969289,1745593848651,-500.0,0.00016986,2]
[358969290,1745593848660,-151.0,0.00016986,2]
[358969291,1745593848670,-500.0,0.00016986,2]
[358969292,1745593848680,-500.0,0.00016986,2]
[358969293,1745593848689,-500.0,0.00016986,2]
[358969294,1745593848699,-500.0,0.00016986,2]
[358969295,1745593848708,-500.0,0.00016986,2]
[358969296,1745593848718,-500.0,0.00016986,2]
[358969297,1745593848727,-500.0,0.00016986,2]
[358969298,1745593848737,-506.13635428,0.00016986,2]
[358969299,1745593848747,-507.55584208,0.00016986,2]
[358969300,1745593848756,-599.43,0.00016986,2]
[358969301,1745593848767,-592.58,0.00016986,2]
[358969302,1745593848777,-151.0,0.00016986,2]
[358969303,1745593848787,-151.0,0.00016986,2]
[358969304,1745593848797,-500.0,0.00016986,2]
[358969305,1745593848807,-158.26036092,0.00016986,2]
[358969306,1745593848817,-500.0,0.00016986,2]
[358969307,1745593848827,-500.0,0.00016986,2]
[358969308,1745593848836,-500.0,0.00016986,2]
[358969309,1745593848846,-500.0,0.00016986,2]
[358969310,1745593848856,-615.19,0.00016986,2]
[358969311,1745593848869,-500.0,0.00016986,2]
[358969312,1745593848879,-500.0,0.00016986,2]
[358969313,1745593848889,-500.0,0.00016986,2]
[358969314,1745593848898,-500.0,0.00016986,2]
[358969315,1745593848908,-500.0,0.00016986,2]
[358969316,1745593848918,-246.38055547,0.00016986,2]
[358969317,1745593848929,-392.71413309,0.00016986,2]
[358969318,1745593848939,-500.0,0.00016986,2]
[358969319,1745593848949,-500.0,0.00016986,2]
[358969320,1745593848959,-500.0,0.00016986,2]
[358969321,1745593848969,-1061.6,0.00016986,2]
[358969322,1745593848981,-500.0,0.00016986,2]
[358969323,1745593848994,-500.0,0.00016986,2]
[358969324,1745593849004,-500.0,0.00016986,2]
[358969325,1745593849015,-500.0,0.00016986,2]
[358969326,1745593849024,-500.0,0.00016986,2]
[358969327,1745593849034,-500.0,0.00016986,2]
[358969328,1745593849044,-500.0,0.00016986,2]
[358969329,1745593849053,-500.0,0.00016986,2]
[358969330,1745593849065,-500.0,0.00016986,2]
[358969331,1745593849075,-500.0,0.00016986,2]
[358969332,1745593849084,-500.0,0.00016986,2]
[358969333,1745593849094,-500.0,0.00016986,2]
[358969334,1745593849104,-765.26,0.00016986,2]
[358969335,1745593849115,-500.0,0.00016986,2]
[358969336,1745593849125,-500.0,0.00016986,2]
[358969337,1745593849135,-500.0,0.00016986,2]
[358969338,1745593849144,-500.0,0.00016986,2]
[358969339,1745593849155,-259.5402522,0.00016986,2]
[358969340,1745593849165,-922.21,0.00016986,2]
[358969341,1745593849175,-500.0,0.00016986,2]
[358969342,1745593849184,-500.0,0.00016986,2]
[358969343,1745593849194,-500.0,0.00016986,2]
[358969344,1745593849204,-500.0,0.00016986,2]
[358969345,1745593849214,-500.0,0.00016986,2]
[358969346,1745593849223,-500.0,0.00016986,2]
[358969347,1745593849234,-558.35976085,0.00016986,2]
[358969348,1745593849244,-500.0,0.00016986,2]
[358969349,1745593849254,-500.0,0.00016986,2]
[358969350,1745593849263,-500.0,0.00016986,2]
[358969351,1745593849274,-500.0,0.00016986,2]
[358969352,1745593849283,-500.0,0.00016986,2]
[358969353,1745593849293,-500.0,0.00016986,2]
[358969354,1745593849302,-583.35,0.00016986,2]
[358969355,1745593849312,-500.0,0.00016986,2]
[358969356,1745593849321,-500.0,0.00016986,2]
[358969357,1745593849331,-500.0,0.00016986,2]
[358969358,1745593849340,-500.0,0.00016986,2]
[358969359,1745593849350,-500.0,0.00016986,2]
[358969360,1745593849360,-500.0,0.00016986,2]
[358969361,1745593849371,-500.0,0.00016986,2]
[358969362,1745593849381,-500.0,0.00016986,2]
[358969363,1745593849391,-500.0,0.00016986,2]
[358969364,1745593849402,-500.0,0.00016986,2]
[358969365,1745593849412,-500.0,0.00016986,2]
[358969366,1745593849422,-500.0,0.00016986,2]
[358969367,1745593849431,-500.0,0.00016986,2]
[358969368,1745593849441,-500.0,0.00016986,2]
[358969369,1745593849450,-500.0,0.00016986,2]
[358969370,1745593849459,-500.0,0.00016986,2]
[358969371,1745593849470,-500.0,0.00016986,2]
[358969372,1745593849480,-1382.17,0.00016986,2]
[358969373,1745593849489,-500.0,0.00016986,2]
[358969374,1745593849499,-500.0,0.00016986,2]
[358969375,1745593849509,-504.31373488,0.00016986,2]
[358969376,1745593849518,-500.0,0.00016986,2]
[358969377,1745593849528,-500.0,0.00016986,2]
[358969378,1745593849537,-500.0,0.00016986,2]
[358969379,1745593849547,-500.0,0.00016986,2]
[358969380,1745593849557,-1027.34,0.00016986,2]
[358969381,1745593849567,-500.0,0.00016986,2]
[358969382,1745593849576,-500.0,0.00016986,2]
[358969383,1745593849586,-500.0,0.00016986,2]
[358969384,1745593849596,-519.3542182,0.00016986,2]
[358969385,1745593849605,-500.0,0.00016986,2]
[358969386,1745593849617,-500.0,0.00016986,2]
[358969387,1745593849627,-500.0,0.00016986,2]
[358969388,1745593849637,-500.0,0.00016986,2]
[358969389,1745593849647,-500.0,0.00016986,2]
[358969390,1745593849656,-500.0,0.00016986,2]
[358969391,1745593849666,-500.0,0.00016986,2]
[358969392,1745593849676,-500.0,0.00016986,2]
[358969393,1745593849685,-500.0,0.00016986,2]
[358969394,1745593849695,-500.0,0.00016986,2]
[358969395,1745593849705,-1357.1709251,0.00016986,2]
[358969396,1745593849909,-500.0,0.00016438,2]
[358969397,1745593849919,-500.0,0.00016438,2]
[358969398,1745593849929,-254.88956841,0.00016438,2]
[358969399,1745593849938,-500.0,0.00016712,2]
[358969400,1745593849948,-1597.7390749,0.00016986,2]
[358969401,1745593849958,-500.0,0.00016986,2]
[358969402,1745593849968,-500.0,0.00016986,2]
[358969403,1745593849980,-500.0,0.00016986,2]
[358969404,1745593849993,-900.58,0.00016986,2]
[358969405,1745593850003,-500.0,0.00016986,2]
[358969406,1745593850013,-1996.8,0.00016986,2]
[358969407,1745593850025,-2037.07,0.00016986,2]
[358969408,1745593850034,-500.0,0.00016986,2]
[358969409,1745593850044,-500.0,0.00016986,2]
[358969410,1745593850054,-500.0,0.00016986,2]
[358969411,1745593850066,-500.0,0.00016986,2]
[358969412,1745593850075,-152.81425118,0.0001699,2]
[358969413,1745593850085,-207.4,0.0001699,2]
[358969414,1745593850096,-151.25846906,0.0001699,2]
[358969415,1745593850106,-2876.604704,0.00016998,2]
[358969416,1745593850116,-500.7900727,0.00016999,2]
[358969417,1745593850125,-2903.75385978,0.00017,2]
[358969418,1745593850137,-2000.0,0.00017,2]
[358969419,1745593850469,-2378.615924,0.00017,2]
[358969420,1745593850481,-701.39368558,0.00017,2]
[358969421,1745593854915,-33573.641565,0.00017,2]
[358969428,1745594609195,6224.46308176,0.00025,30]
[358969429,1745594619813,2166.939743,0.00025,30]
[358969531,1745594825100,-197.83608001,0.00015436,2]
[358969532,1745594825123,-832.5837333,0.00015536,2]
[358969533,1745594825145,-160.0,0.00016141,2]
[358969534,1745594825167,-300.0,0.00016336,2]
[358969535,1745594825200,-500.0,0.00016337,2]
[358969536,1745594825221,-15300.834637,0.00016337,2]
[358969538,1745594847079,-327.1960002,0.0001546,2]
[358969539,1745594850156,-1136.87269751,0.0001546,2]
[358969567,1745594904247,198.0,0.00025,30]
[358969617,1745595032721,-301.16039829,0.0001546,2]
[358969618,1745595032732,-300.0,0.00016336,2]
[358969619,1745595032742,-1200.0,0.00016336,2]
[358969621,1745595032751,-5089.6376446,0.00016337,2]
[358969622,1745595032761,-168.66867355,0.00016338,2]
[358969624,1745595032770,-517.54195475,0.00016338,2]
[358969626,1745595032780,-500.0,0.000164,2]
[358969628,1745595032789,-207.4,0.00016428,2]
[358969630,1745595032800,-301.467508,0.00016437,2]
[358969632,1745595032811,-500.0,0.00016438,2]
[358969634,1745595032820,-500.0,0.00016438,2]
[358969636,1745595032829,-346.84260259,0.00016438,2]
[358969638,1745595032839,-500.0,0.00016438,2]
[358969640,1745595032848,-457.58255097,0.00016438,2]
[358969642,1745595032857,-88.56588424,0.00016438,2]
[358969645,1745595032869,-411.43411576,0.00016438,2]
[358969646,1745595032879,-401.73124055,0.00016438,2]
[358969647,1745595032888,-500.0,0.00016438,2]
[358969648,1745595032897,-500.0,0.00016438,2]